bitfinex/quotes_BTCUSD_20240820
["timestamp","ask_amount","ask_price","bid_price","bid_amount"]
[1724173417705,0.000902,58935.0,58934.0,0.08599314]
[1724173418109,0.000902,58935.0,58934.0,0.08199314]
[1724173418320,0.000902,58935.0,58934.0,0.09799314]
[1724173418777,0.000902,58935.0,58934.0,0.0936]
[1724173420363,0.000902,58935.0,58934.0,0.11649551]
[1724173420591,0.000902,58935.0,58934.0,0.18209551]
[1724173420807,0.000902,58935.0,58934.0,0.28209551]
[1724173421025,0.000902,58935.0,58934.0,0.27409551]
[1724173421255,0.000902,58935.0,58934.0,0.32512551]
[1724173421476,0.000821,58941.0,58940.0,0.1499]
[1724173421700,0.000821,58941.0,58940.0,0.53538229]
[1724173421918,0.000821,58941.0,58940.0,0.63738229]
[1724173422131,0.000821,58941.0,58940.0,0.68950612]
[1724173423036,0.000821,58941.0,58940.0,0.63538229]
[1724173423245,0.000821,58941.0,58940.0,0.64948968]
[1724173423449,0.000821,58941.0,58940.0,0.69961351]
[1724173424116,0.000821,58941.0,58940.0,0.71361351]
[1724173424339,0.000821,58941.0,58940.0,0.67548968]
[1724173424544,0.000821,58941.0,58940.0,0.67348968]
[1724173424750,0.000821,58941.0,58940.0,0.67009739]
[1724173426062,0.000821,58941.0,58940.0,0.67409739]
[1724173426701,0.135665,58969.0,58945.0,0.0806]
[1724173426909,0.135665,58969.0,58946.0,0.3481]
[1724173427121,0.291,58951.0,58947.0,0.04297]
[1724173427331,0.291,58951.0,58945.0,0.0806]
[1724173427745,0.291,58951.0,58940.0,0.54269]
[1724173428005,0.291,58951.0,58941.0,0.0817]
[1724173428614,0.291,58951.0,58945.0,0.003]
[1724173429687,0.0798,58950.0,58945.0,0.003]
[1724173430309,0.0798,58950.0,58937.0,0.0825]
[1724173430539,0.23,58943.0,58937.0,0.4771]
[1724173430738,0.23,58943.0,58941.0,0.006]
[1724173430739,0.1367,58942.0,58941.0,0.006]
[1724173431151,0.14094168,58942.0,58941.0,0.006]
[1724173431380,0.1367,58942.0,58941.0,0.003]
[1724173432016,0.14094168,58942.0,58941.0,0.003]
[1724173432215,0.146,58933.0,58929.0,0.4771]
[1724173433694,0.146,58933.0,58929.0,0.52481]
[1724173434128,0.146,58933.0,58929.0,0.52881]
[1724173434337,0.0631,58933.0,58929.0,0.53381]
[1724173434542,0.2,58934.0,58929.0,0.53381]
[1724173434945,0.0907,58937.0,58930.0,0.00339356]
[1724173435152,0.0907,58937.0,58931.0,0.04162684]
[1724173436647,0.0907,58937.0,58929.0,0.53181]
[1724173436863,0.0907,58937.0,58929.0,0.52781]
[1724173437087,0.0907,58937.0,58930.0,0.00339331]
[1724173438014,0.2,58940.0,58931.0,0.0809]
[1724173438217,0.2,58940.0,58932.0,0.00339325]
[1724173438429,0.2,58940.0,58933.0,0.07970032]
[1724173438625,0.2,58940.0,58934.0,0.00339313]
[1724173439071,0.2,58940.0,58933.0,0.01350032]
[1724173440287,0.2,58940.0,58934.0,0.002]
[1724173440487,0.0654,58936.0,58934.0,0.002]
[1724173441567,0.0654,58936.0,58934.0,0.004]
[1724173441775,0.0753,58935.0,58934.0,0.004]
[1724173442013,0.0795419,58935.0,58934.0,0.004]
[1724173442202,0.23,58929.0,58921.0,0.0785]
[1724173442810,0.23,58929.0,58921.0,0.09635]
[1724173443015,0.1381,58928.0,58916.0,0.078]
[1724173443223,0.2,58923.0,58916.0,0.078]
[1724173443842,0.2,58923.0,58921.0,0.009]
[1724173444045,0.1381,58928.0,58921.0,0.009]
[1724173444046,0.0618,58928.0,58921.0,0.009]
[1724173445065,0.0618,58928.0,58922.0,0.0033939]
[1724173445474,0.0618,58928.0,58921.0,0.005]
[1724173445888,0.23,58929.0,58922.0,0.00339384]
[1724173446302,0.23,58929.0,58921.0,0.009]
[1724173446716,0.23,58929.0,58921.0,0.004]
[1724173446924,0.23,58929.0,58921.0,0.005]
[1724173447534,0.23,58929.0,58916.0,0.078902]
[1724173447739,0.23,58929.0,58917.0,0.094946]
[1724173448358,0.23,58929.0,58922.0,0.003]
[1724173448760,0.23,58929.0,58921.0,0.003]
[1724173449765,0.23,58929.0,58922.0,0.003]
[1724173449981,0.23,58929.0,58917.0,0.09155217]
[1724173450181,0.23,58929.0,58921.0,0.003]
[1724173450669,0.0618,58932.0,58921.0,0.003]
[1724173450670,0.0927,58922.0,58921.0,0.003]
[1724173451493,0.0927,58922.0,58916.0,0.000902]
[1724173452241,0.0927,58922.0,58921.0,0.003]
[1724173452439,0.0927,58922.0,58916.0,0.000902]
[1724173452593,0.0927,58922.0,58916.0,0.002902]
[1724173453325,0.0927,58922.0,58921.0,0.002]
[1724173453661,0.0927,58922.0,58916.0,0.002902]
[1724173453875,0.0927,58922.0,58916.0,0.0509022]
[1724173454074,0.0927,58922.0,58917.0,0.0779]
[1724173454075,0.03,58922.0,58917.0,0.0779]
[1724173454921,0.03,58922.0,58921.0,0.002]
[1724173455131,0.424,58932.0,58921.0,0.1442]
[1724173455132,0.03,58928.0,58921.0,0.1442]
[1724173455346,0.03,58928.0,58922.0,0.04923]
[1724173455570,0.03,58935.0,58926.0,0.3481]
[1724173455771,0.03,58935.0,58927.0,0.0813]
[1724173456017,0.03,58935.0,58927.0,0.11451731]
[1724173456219,0.03,58935.0,58928.0,0.00339365]
[1724173456424,0.03,58935.0,58927.0,0.0813]
[1724173461278,0.03,58929.0,58927.0,0.0813]
[1724173461481,0.23,58929.0,58922.0,0.13093]
[1724173461691,0.2,58929.0,58922.0,0.13093]
[1724173461904,0.2,58929.0,58923.0,0.06198453]
[1724173462094,0.03,58935.0,58924.0,0.0817]
[1724173462688,0.02658373,58934.0,58926.0,0.3481]
[1724173462849,0.03,58935.0,58927.0,0.08509348]
[1724173463064,0.03,58941.0,58933.0,0.0817]
[1724173463314,0.03,58941.0,58934.0,0.04637309]
[1724173463514,0.2,58943.0,58938.0,0.3481]
[1724173463717,0.3392,58946.0,58939.0,0.0758]
[1724173463917,0.2946,58949.0,58939.0,0.07919293]
[1724173464240,0.02657755,58948.0,58939.0,0.0758]
[1724173464436,0.02657755,58948.0,58940.0,0.04249]
[1724173465232,0.02657755,58948.0,58939.0,0.0758]
[1724173465441,0.2,58941.0,58939.0,0.0778]
[1724173465845,0.2,58941.0,58939.0,0.0758]
[1724173466052,0.2,58941.0,58940.0,0.002]
[1724173466271,0.22657989,58941.0,58940.0,0.002]
[1724173466667,0.28777989,58941.0,58940.0,0.002]
[1724173466865,0.22657989,58941.0,58940.0,0.002]
[1724173467043,0.02657989,58941.0,58940.0,0.0852]
[1724173467256,0.02657989,58946.0,58940.0,0.10054]
[1724173467463,0.02657989,58946.0,58940.0,0.10254]
[1724173468121,0.02657989,58946.0,58940.0,0.09854]
[1724173468327,0.2,58947.0,58940.0,0.09854]
[1724173468534,0.2,58947.0,58940.0,0.09954]
[1724173469109,0.2,58947.0,58941.0,0.051384]
[1724173469317,0.2,58947.0,58942.0,0.0832]
[1724173472805,0.1383,58946.0,58938.0,0.4313]
[1724173473013,0.2,58947.0,58938.0,0.0832]
[1724173473276,0.2,58947.0,58940.0,0.0832]
[1724173473492,0.2,58947.0,58943.0,0.0832]
[1724173473633,0.01776169,58946.0,58945.0,0.3481]
[1724173474105,0.01776169,58946.0,58945.0,0.4313]
[1724173475160,0.01776169,58946.0,58945.0,0.4413]
[1724173475367,0.01776169,58946.0,58945.0,0.0932]
[1724173475573,0.01776169,58946.0,58945.0,0.01]
[1724173476045,0.01776169,58946.0,58945.0,0.02]
[1724173476257,0.09416169,58946.0,58945.0,0.02]
[1724173476565,0.14475453,58946.0,58945.0,0.01]
[1724173476794,0.2,58939.0,58934.0,0.5539]
[1724173478438,0.2,58939.0,58934.0,0.5609]
[1724173478642,0.2,58939.0,58934.0,0.0838]
[1724173479247,0.2,58939.0,58934.0,0.0908]
[1724173480954,0.03,58943.0,58935.0,0.00339325]
[1724173481157,0.01776169,58946.0,58940.0,0.0624]
[1724173481398,0.01776169,58946.0,58941.0,0.00339268]
[1724173481599,0.01776169,58946.0,58942.0,0.0795]
[1724173483590,0.01776169,58946.0,58937.0,0.0824]
[1724173484959,0.01776169,58946.0,58937.0,0.0854]
[1724173485315,0.2,58944.0,58937.0,0.0854]
[1724173485513,0.2632,58944.0,58937.0,0.0854]
[1724173485741,0.2,58944.0,58937.0,0.1352702]
[1724173485944,0.2,58944.0,58941.0,0.0809]
[1724173486590,0.2,58944.0,58940.0,0.3481]
[1724173487037,0.01776169,58946.0,58940.0,0.3481]
[1724173487452,0.01776169,58946.0,58941.0,0.005]
[1724173487659,0.01776169,58946.0,58941.0,0.05938702]
[1724173487863,0.01776169,58946.0,58941.0,0.05438702]
[1724173488241,0.01776169,58946.0,58941.0,0.006]
[1724173489111,0.01776169,58946.0,58943.0,0.0612]
[1724173490196,0.01776169,58946.0,58944.0,0.0033926]
[1724173491060,0.01776169,58946.0,58943.0,0.0612]
[1724173491288,0.01776169,58946.0,58942.0,0.0809]
[1724173491508,0.01776169,58946.0,58944.0,0.01]
[1724173492886,0.01776169,58946.0,58943.0,0.003]
[1724173493339,0.01776169,58946.0,58940.0,0.4242]
[1724173493558,0.01776169,58946.0,58944.0,0.01]
[1724173493765,0.01776169,58946.0,58944.0,0.02]
[1724173493977,0.062,58945.0,58944.0,0.01]
[1724173494208,0.2,58944.0,58943.0,0.01]
[1724173494432,0.2,58944.0,58938.0,0.0829]
[1724173494639,0.2,58944.0,58943.0,0.01]
[1724173496366,0.2,58944.0,58943.0,0.04581]
[1724173496700,0.2,58944.0,58943.0,0.013]
[1724173497802,0.2,58944.0,58943.0,0.025]
[1724173498652,0.2,58944.0,58943.0,0.1075]
[1724173499193,0.01776169,58946.0,58943.0,0.1075]
[1724173499194,0.01776169,58946.0,58944.0,0.0621]
[1724173499417,0.01776169,58946.0,58945.0,0.01739928]
[1724173499620,0.01776169,58946.0,58945.0,0.09989928]
[1724173500436,0.01776169,58946.0,58945.0,0.10089928]
[1724173500646,0.01776169,58946.0,58945.0,0.23389928]
[1724173500861,0.01776169,58946.0,58945.0,0.23489928]
[1724173501062,0.01776169,58946.0,58945.0,0.23389928]
[1724173501636,0.01776169,58946.0,58945.0,0.23289928]
[1724173501853,0.01776169,58946.0,58945.0,0.21989928]
[1724173502192,0.01776169,58946.0,58945.0,0.12]
[1724173502398,0.07886169,58946.0,58945.0,0.01]
[1724173503045,0.07886169,58946.0,58945.0,0.024]
[1724173503256,0.07886169,58946.0,58945.0,0.014]
[1724173503890,0.07886169,58946.0,58945.0,0.028]
[1724173504095,0.10543809,58946.0,58945.0,0.028]
[1724173504275,0.10543809,58946.0,58945.0,0.014]
[1724173504555,0.2,58944.0,58935.0,0.0829]
[1724173504785,0.2,58944.0,58935.0,0.24687878]
[1724173505004,0.0265764,58943.0,58935.0,0.24687878]
[1724173505451,0.0265764,58943.0,58937.0,0.000902]
[1724173506306,0.2,58938.0,58937.0,0.000902]
[1724173506516,0.27723606,58938.0,58937.0,0.000902]
[1724173506744,0.27723606,58938.0,58937.0,0.007902]
[1724173506948,0.3203296,58938.0,58937.0,0.007902]
[1724173507156,0.3203296,58938.0,58937.0,0.000902]
[1724173507375,0.3203296,58938.0,58937.0,0.004902]
[1724173507376,0.38768188,58938.0,58937.0,0.004902]
[1724173507579,0.51008926,58938.0,58937.0,0.004902]
[1724173507788,0.51030376,58938.0,58937.0,0.004902]
[1724173508011,0.51030376,58938.0,58937.0,0.009902]
[1724173508442,0.38344011,58938.0,58937.0,0.009902]
[1724173508679,0.38344011,58938.0,58937.0,0.005902]
[1724173508894,1.16211711,58938.0,58937.0,0.005902]
[1724173509105,1.16211711,58938.0,58937.0,0.011902]
[1724173509106,1.06191204,58938.0,58937.0,0.011902]
[1724173509321,1.06191204,58938.0,58937.0,0.005902]
[1724173509322,0.65474544,58938.0,58937.0,0.005902]
[1724173509530,0.48344011,58938.0,58937.0,0.000902]
[1724173509735,0.38344011,58938.0,58937.0,0.000902]
[1724173511828,0.38574011,58938.0,58937.0,0.000902]
[1724173512237,0.48718216,58938.0,58937.0,0.000902]
[1724173513099,0.512538,58938.0,58937.0,0.000902]
[1724173513518,0.51251811,58938.0,58937.0,0.000902]
[1724173514145,0.38574011,58938.0,58937.0,0.000902]
[1724173514569,0.52147511,58938.0,58937.0,0.000902]
[1724173514782,0.79294611,58938.0,58937.0,0.000902]
[1724173515420,0.52147511,58938.0,58937.0,0.000902]
[1724173516064,0.38574011,58938.0,58937.0,0.000902]
[1724173516298,0.48718112,58938.0,58937.0,0.000902]
[1724173516512,0.48716477,58938.0,58937.0,0.000902]
[1724173516722,0.51253775,58938.0,58937.0,0.000902]
[1724173516958,0.38574011,58938.0,58937.0,0.000902]
[1724173517393,0.79294611,58938.0,58937.0,0.000902]
[1724173519111,0.79394611,58938.0,58937.0,0.000902]
[1724173519330,1.24443575,58938.0,58937.0,0.000902]
[1724173519577,1.46388811,58938.0,58937.0,0.000902]
[1724173520012,1.46188811,58938.0,58937.0,0.000902]
[1724173520238,1.47227497,58938.0,58937.0,0.000902]
[1724173520443,1.47427497,58938.0,58937.0,0.000902]
[1724173520855,1.81347497,58938.0,58937.0,0.000902]
[1724173521264,1.80947497,58938.0,58937.0,0.000902]
[1724173521492,1.52661711,58938.0,58937.0,0.000902]
[1724173521717,1.23214611,58938.0,58937.0,0.000902]
[1724173521929,0.72494011,58938.0,58937.0,0.000902]
[1724173522393,0.8008086,58938.0,58937.0,0.000902]
[1724173522599,0.4616086,58938.0,58937.0,0.000902]
[1724173522813,0.46160215,58938.0,58937.0,0.000902]
[1724173523465,0.56160215,58938.0,58937.0,0.000902]
[1724173523871,0.25916371,58938.0,58937.0,0.000902]
[1724173524945,0.27816371,58938.0,58937.0,0.000902]
[1724173528015,0.32874979,58938.0,58937.0,0.000902]
[1724173528637,0.27816371,58938.0,58937.0,0.000902]
[1724173529530,0.32874979,58938.0,58937.0,0.000902]
[1724173531477,0.27816371,58938.0,58937.0,0.000902]
[1724173531898,0.28505236,58938.0,58937.0,0.000902]
[1724173533783,0.56076557,58938.0,58937.0,0.000902]
[1724173534003,1.35122656,58938.0,58937.0,0.000902]
[1724173534219,1.75600691,58938.0,58937.0,0.000902]
[1724173534436,1.63006882,58938.0,58937.0,0.000902]
[1724173534639,1.63206882,58938.0,58937.0,0.000902]
[1724173535097,1.32228847,58938.0,58937.0,0.000902]
[1724173535310,0.89904235,58938.0,58937.0,0.000902]
[1724173535538,0.49183635,58938.0,58937.0,0.000902]
[1724173535741,0.67382084,58938.0,58937.0,0.000902]
[1724173536149,0.54737135,58938.0,58937.0,0.000902]
[1724173536775,0.81884235,58938.0,58937.0,0.000902]
[1724173537966,1.09031335,58938.0,58937.0,0.000902]
[1724173538123,1.17201335,58938.0,58937.0,0.000902]
[1724173539335,1.51801335,58938.0,58937.0,0.000902]
[1724173540892,1.51901335,58938.0,58937.0,0.000902]
[1724173541094,1.51801335,58938.0,58937.0,0.000902]
[1724173541299,1.34105628,58938.0,58937.0,0.000902]
[1724173541503,1.35882409,58938.0,58937.0,0.000902]
[1724173542157,1.55882409,58938.0,58937.0,0.000902]
[1724173542718,1.38608845,58938.0,58937.0,0.000902]
[1724173543267,1.51259675,58938.0,58937.0,0.000902]
[1724173544319,1.57869675,58938.0,58937.0,0.000902]
[1724173544488,1.45418845,58938.0,58937.0,0.000902]
[1724173544684,1.47718845,58938.0,58937.0,0.000902]
[1724173545291,1.45921338,58938.0,58937.0,0.000902]
[1724173545495,1.58585023,58938.0,58937.0,0.000902]
[1724173545712,1.44918845,58938.0,58937.0,0.000902]
[1724173546493,1.17771745,58938.0,58937.0,0.000902]
[1724173546703,1.27903103,58938.0,58937.0,0.000902]
[1724173546905,1.17771745,58938.0,58937.0,0.000902]
[1724173547104,1.27903351,58938.0,58937.0,0.000902]
[1724173547730,1.56865943,58938.0,58937.0,0.000902]
[1724173547970,1.44201745,58938.0,58937.0,0.000902]
[1724173548910,1.79668845,58938.0,58937.0,0.000902]
[1724173549200,1.44968845,58938.0,58937.0,0.000902]
[1724173549846,1.17821745,58938.0,58937.0,0.000902]
[1724173550122,1.43521745,58938.0,58937.0,0.000902]
[1724173551325,1.60618412,58938.0,58937.0,0.000902]
[1724173551502,1.43521745,58938.0,58937.0,0.000902]
[1724173551698,1.43603845,58938.0,58937.0,0.000902]
[1724173552751,1.70850945,58938.0,58937.0,0.000902]
[1724173552922,1.78440945,58938.0,58937.0,0.000902]
[1724173553325,1.81040945,58938.0,58937.0,0.000902]
[1724173553923,1.80740945,58938.0,58937.0,0.000902]
[1724173554124,2.15640945,58938.0,58937.0,0.000902]
[1724173554310,2.15340945,58938.0,58937.0,0.000902]
[1724173556661,2.15440945,58938.0,58937.0,0.000902]
[1724173557040,2.15640945,58938.0,58937.0,0.000902]
[1724173557717,2.15340945,58938.0,58937.0,0.000902]
[1724173558750,2.15440945,58938.0,58937.0,0.000902]
[1724173558940,1.81140945,58938.0,58937.0,0.000902]
[1724173559139,2.25688045,58938.0,58937.0,0.000902]
[1724173559442,1.91428045,58938.0,58937.0,0.000902]
[1724173559654,1.74468045,58938.0,58937.0,0.000902]
[1724173561315,2.08388045,58938.0,58937.0,0.000902]
[1724173563103,1.74468045,58938.0,58937.0,0.000902]
[1724173563926,1.74068045,58938.0,58937.0,0.000902]
[1724173564354,1.74268045,58938.0,58937.0,0.000902]
[1724173564760,1.74468045,58938.0,58937.0,0.000902]
[1724173565874,1.71668045,58938.0,58937.0,0.000902]
[1724173566096,1.30220945,58938.0,58937.0,0.000902]
[1724173566501,1.38780945,58938.0,58937.0,0.000902]
[1724173566711,1.44880945,58938.0,58937.0,0.000902]
[1724173566958,1.72228045,58938.0,58937.0,0.000902]
[1724173567505,1.74528045,58938.0,58937.0,0.000902]
[1724173568462,2.70195145,58938.0,58937.0,0.00081181]
[1724173568666,2.35595145,58938.0,58937.0,0.00081181]
[1724173569765,2.70195145,58938.0,58937.0,0.00081181]
[1724173570188,2.70195145,58938.0,58917.0,0.000902]
[1724173570189,1.182781,58918.0,58917.0,0.000902]
[1724173570393,1.72908267,58918.0,58917.0,0.000902]
[1724173570606,2.39020867,58918.0,58917.0,0.000902]
[1724173570810,1.90850056,58918.0,58917.0,0.000902]
[1724173571011,1.90850056,58918.0,58917.0,0.083002]
[1724173571012,1.63171134,58918.0,58917.0,0.083002]
[1724173571326,1.46055666,58918.0,58917.0,0.083002]
[1724173572858,0.93373246,58918.0,58917.0,0.083002]
[1724173573042,1.06951346,58918.0,58917.0,0.083002]
[1724173573215,0.91743066,58918.0,58917.0,0.083002]
[1724173574213,0.78164966,58918.0,58917.0,0.083002]
[1724173574611,0.08164966,58918.0,58917.0,0.146102]
[1724173574810,0.1830374,58918.0,58917.0,0.1608024]
[1724173575013,0.1830374,58918.0,58917.0,0.146102]
[1724173575014,0.08164966,58918.0,58917.0,0.146102]
[1724173575556,0.12769659,58918.0,58917.0,0.146102]
[1724173575767,0.02506567,58918.0,58917.0,0.146102]
[1724173576202,0.02506567,58918.0,58917.0,0.14949611]
[1724173576614,0.01777378,58918.0,58917.0,0.14949611]
[1724173576815,0.01777378,58918.0,58917.0,0.19934592]
[1724173577421,0.01777378,58918.0,58917.0,0.20195181]
[1724173577831,0.02508732,58918.0,58917.0,0.146102]
[1724173578252,0.02508732,58918.0,58917.0,0.157102]
[1724173578866,0.02508732,58918.0,58917.0,0.168102]
[1724173579444,0.02508732,58918.0,58917.0,0.157102]
[1724173579917,0.02508732,58918.0,58917.0,0.163102]
[1724173580306,0.02508732,58918.0,58917.0,0.2083124]
[1724173580614,0.02508732,58918.0,58917.0,0.1973124]
[1724173580743,0.02508732,58918.0,58917.0,0.2043124]
[1724173580947,0.02508732,58918.0,58917.0,0.20770653]
[1724173581144,0.02508732,58918.0,58917.0,0.21270653]
[1724173581768,0.02508732,58918.0,58917.0,0.2093124]
[1724173581969,0.01777378,58918.0,58917.0,0.2093124]
[1724173582374,0.01777378,58918.0,58917.0,0.158102]
[1724173582594,0.01777378,58918.0,58917.0,0.153102]
[1724173582966,0.01777378,58918.0,58917.0,0.160102]
[1724173584600,0.05070654,58927.0,58920.0,0.0771]
[1724173584805,0.06847408,58933.0,58926.0,0.0771]
[1724173585018,0.06847408,58933.0,58928.0,0.0771]
[1724173585222,0.06847408,58933.0,58930.0,0.0771]
[1724173585223,0.01776754,58933.0,58930.0,0.0771]
[1724173585415,0.01776754,58933.0,58932.0,0.0771]
[1724173585626,0.01776754,58933.0,58932.0,0.15860356]
[1724173585846,0.01776754,58933.0,58932.0,0.15521]
[1724173586589,0.01776754,58933.0,58932.0,0.1411]
[1724173586801,0.01776754,58933.0,58932.0,0.1421]
[1724173587003,0.000821,58938.0,58934.0,0.1411]
[1724173587223,0.000821,58938.0,58933.0,0.001]
[1724173587224,0.000821,58938.0,58937.0,0.1411]
[1724173590512,0.00870421,58938.0,58937.0,0.1411]
[1724173590705,0.000821,58938.0,58937.0,0.1411]
[1724173590932,0.00870613,58938.0,58937.0,0.1411]
[1724173591138,0.000821,58938.0,58937.0,0.1411]
[1724173591687,0.00870444,58938.0,58937.0,0.1411]
[1724173591895,0.000821,58938.0,58937.0,0.1411]
[1724173592103,0.00870472,58938.0,58937.0,0.1411]
[1724173592312,0.000821,58938.0,58937.0,0.1411]
[1724173592527,0.008705,58938.0,58937.0,0.1411]
[1724173592735,0.000821,58938.0,58937.0,0.1411]
[1724173592947,0.008705,58938.0,58937.0,0.1411]
[1724173593122,0.000821,58938.0,58937.0,0.1411]
[1724173593322,0.00771975,58938.0,58937.0,0.1411]
[1724173593559,0.000821,58938.0,58937.0,0.1411]
[1724173593777,0.00870528,58938.0,58937.0,0.1411]
[1724173593991,0.000821,58938.0,58937.0,0.1411]
[1724173594192,0.01001709,58938.0,58937.0,0.1411]
[1724173594395,0.000821,58938.0,58937.0,0.15521]
[1724173594599,0.008711,58938.0,58937.0,0.15521]
[1724173594807,0.000821,58938.0,58937.0,0.15521]
[1724173595072,0.008711,58938.0,58937.0,0.15521]
[1724173595271,0.00870859,58938.0,58937.0,0.15521]
[1724173595525,0.000821,58938.0,58937.0,0.15521]
[1724173595732,0.000821,58938.0,58937.0,0.15860293]
[1724173595956,0.000821,58938.0,58937.0,0.15521]
[1724173596165,0.000821,58938.0,58937.0,0.15860293]
[1724173600430,0.000821,58938.0,58937.0,0.16160293]
[1724173600675,0.000821,58938.0,58937.0,0.15860293]
[1724173601048,0.000821,58938.0,58937.0,0.16903936]
[1724173601893,0.000821,58938.0,58937.0,0.17403936]
[1724173602102,0.000821,58938.0,58937.0,0.22158735]
[1724173602303,0.01776367,58943.0,58942.0,0.03903]
[1724173602498,0.00082,58957.0,58946.0,0.003]
[1724173602703,0.00082,58957.0,58954.0,0.3481]
[1724173602704,0.01775944,58956.0,58954.0,0.3481]
[1724173602903,0.01775944,58956.0,58954.0,0.52511]
[1724173604002,0.00082,58957.0,58954.0,0.52511]
[1724173604416,0.00082,58957.0,58954.0,0.53411]
[1724173604824,0.00082,58957.0,58954.0,0.53511]
[1724173605027,0.00082,58957.0,58954.0,0.54511]
[1724173605243,0.00082,58957.0,58954.0,0.53911]
[1724173605651,0.00082,58957.0,58954.0,0.64211]
[1724173606056,0.00082,58957.0,58954.0,0.64911]
[1724173606460,0.00082,58957.0,58954.0,0.64211]
[1724173606864,0.00082,58957.0,58954.0,0.63011]
[1724173607069,0.00082,58957.0,58954.0,0.66311]
[1724173607442,0.00082,58957.0,58954.0,0.64911]
[1724173607612,0.00082,58957.0,58954.0,0.66311]
[1724173607815,0.00082,58957.0,58954.0,0.67711]
[1724173608245,0.00082,58957.0,58954.0,0.63911]
[1724173608652,0.00082,58957.0,58954.0,0.65311]
[1724173609052,0.00082,58957.0,58954.0,0.6183]
[1724173609438,0.00082,58957.0,58954.0,0.6193]
[1724173609657,0.00082,58957.0,58954.0,0.6183]
[1724173610045,0.00082,58957.0,58954.0,0.5183]
[1724173610845,0.00082,58957.0,58954.0,0.5193]
[1724173611079,0.00082,58957.0,58954.0,0.57464077]
[1724173611316,0.00082,58957.0,58954.0,0.59964077]
[1724173611745,0.00082,58957.0,58954.0,0.69964077]
[1724173611953,0.009031,58965.0,58962.0,0.143]
[1724173612332,0.009031,58965.0,58962.0,0.4911]
[1724173612536,0.009031,58965.0,58962.0,0.56321]
[1724173612890,0.009031,58965.0,58962.0,0.66321]
[1724173613091,0.009031,58965.0,58962.0,0.65921]
[1724173613305,0.009031,58965.0,58962.0,0.66521]
[1724173613518,0.009031,58965.0,58962.0,0.70324]
[1724173613923,0.009031,58965.0,58962.0,0.70924]
[1724173614120,0.009031,58965.0,58962.0,0.71950848]
[1724173614327,0.009031,58965.0,58962.0,0.71350848]
[1724173614529,0.009031,58965.0,58962.0,0.72150848]
[1724173615116,0.009031,58965.0,58962.0,0.73550848]
[1724173615338,0.009031,58965.0,58964.0,0.03903]
[1724173615544,0.009031,58970.0,58969.0,0.1448]
[1724173615747,0.009031,58970.0,58969.0,0.49329065]
[1724173615957,0.009031,58970.0,58969.0,0.5119]
[1724173616160,0.009031,58970.0,58969.0,0.4879]
[1724173616911,0.009031,58970.0,58969.0,0.5119]
[1724173617110,0.009031,58970.0,58969.0,0.56309]
[1724173617720,0.009031,58970.0,58969.0,0.56509]
[1724173617920,0.009031,58970.0,58969.0,0.68109]
[1724173618385,0.009031,58970.0,58969.0,0.69509]
[1724173618969,0.009031,58970.0,58969.0,0.70555312]
[1724173619234,0.0002,58979.0,58976.0,0.1482]
[1724173619481,0.0002,58979.0,58976.0,1.8647]
[1724173619692,0.0002,58979.0,58978.0,0.1462]
[1724173619900,0.0002,58979.0,58978.0,0.27259012]
[1724173620508,0.0082,58997.0,58986.0,0.1422]
[1724173620711,0.0082,58997.0,58986.0,0.53130951]
[1724173620950,0.0082,58997.0,58986.0,0.6808575]
[1724173621152,0.0082,58997.0,58986.0,0.63130951]
[1724173621352,0.0082,58997.0,58986.0,0.63330951]
[1724173621687,0.0082,58997.0,58986.0,0.64330951]
[1724173621912,0.0082,58997.0,58986.0,0.63792]
[1724173622093,0.0082,58997.0,58986.0,0.62537367]
[1724173623007,0.0082,58997.0,58986.0,0.61737367]
[1724173623199,0.0082,58997.0,58986.0,0.61537367]
[1724173623412,0.0082,58997.0,58986.0,0.66837367]
[1724173623672,0.0082,58997.0,58986.0,0.65437367]
[1724173624048,0.0082,58997.0,58986.0,0.66837367]
[1724173624230,0.0082,58997.0,58986.0,0.65437367]
[1724173624627,0.0082,58997.0,58986.0,0.66837367]
[1724173624833,0.0082,58997.0,58993.0,0.1443]
[1724173625056,0.0082,58997.0,58993.0,0.6354193]
[1724173625256,0.0082,58997.0,58993.0,0.68096729]
[1724173625457,0.0082,58997.0,58993.0,0.62903]
[1724173625665,0.0082,58997.0,58993.0,0.63003]
[1724173625948,0.0082,58997.0,58993.0,0.62903]
[1724173626293,0.0082,58997.0,58993.0,0.60603]
[1724173626493,0.0082,58997.0,58993.0,0.55573]
[1724173626980,0.0082,58997.0,58993.0,0.56773]
[1724173627190,0.0844,58997.0,58993.0,0.025]
[1724173627296,0.0082,58997.0,58993.0,0.025]
[1724173627706,0.0082,58997.0,58993.0,0.3731]
[1724173627912,0.0082,58997.0,58993.0,0.5096]
[1724173628118,0.0082,58997.0,58996.0,0.0763]
[1724173628336,0.0082,58997.0,58996.0,0.1311492]
[1724173628564,0.0082,58997.0,58996.0,0.5788492]
[1724173628965,0.0082,58997.0,58996.0,0.5808492]
[1724173629578,0.0082,58997.0,58996.0,0.6008492]
[1724173629769,0.0082,58997.0,58996.0,0.73139719]
[1724173629972,0.0082,58997.0,58996.0,0.82739719]
[1724173630168,0.0082,58997.0,58996.0,0.7798492]
[1724173630370,0.0082,58997.0,58996.0,0.7818492]
[1724173630780,0.0082,58997.0,58996.0,0.7838492]
[1724173631571,0.0082,58997.0,58996.0,2.0292492]
[1724173631782,0.0002,58999.0,58998.0,0.005]
[1724173632001,0.0002,58999.0,58998.0,0.46729725]
[1724173632430,0.0002,58999.0,58998.0,0.46390878]
[1724173633051,0.0002,58999.0,58998.0,0.47090878]
[1724173633255,0.0002,58999.0,58998.0,0.48490878]
[1724173635000,0.0002,58999.0,58998.0,0.54586478]
[1724173635176,0.0002,59019.0,59010.0,0.076]